bitfinex/quotes_BTCUSD_20230905
["timestamp","ask_amount","ask_price","bid_price","bid_amount"]
[1693949491092,0.00489704,25767.0,25766.0,5.43497868]
[1693949491295,0.00489704,25767.0,25766.0,5.43539868]
[1693949491501,0.00489704,25767.0,25766.0,5.43557868]
[1693949491707,0.00489704,25767.0,25766.0,5.43491868]
[1693949491916,0.00489704,25767.0,25766.0,5.43497868]
[1693949492126,0.00489704,25767.0,25766.0,5.43491868]
[1693949492518,0.00489704,25767.0,25766.0,5.42979868]
[1693949492724,0.00489704,25767.0,25766.0,5.42919868]
[1693949492928,0.00489704,25767.0,25766.0,5.36133868]
[1693949494500,0.00489704,25767.0,25766.0,5.42769868]
[1693949494703,0.00489704,25767.0,25766.0,5.42781868]
[1693949494902,0.00489704,25767.0,25766.0,5.42757868]
[1693949495109,0.00489704,25767.0,25766.0,5.42763868]
[1693949495310,0.00489704,25767.0,25766.0,5.42793868]
[1693949495514,0.00489704,25767.0,25766.0,5.36133868]
[1693949505054,0.00489704,25767.0,25766.0,5.28133868]
[1693949512329,0.00489704,25767.0,25766.0,5.26133868]
[1693949513685,0.00489704,25767.0,25766.0,5.35388702]
[1693949514215,0.00489704,25767.0,25766.0,5.26133868]
[1693949514438,0.00489704,25767.0,25766.0,5.35388702]
[1693949515893,0.00489704,25767.0,25766.0,5.42780702]
[1693949516453,0.00489704,25767.0,25766.0,5.42774702]
[1693949516649,0.00489704,25767.0,25766.0,5.42762702]
[1693949516875,0.00489704,25767.0,25766.0,5.42756702]
[1693949517075,0.00489704,25767.0,25766.0,5.42750702]
[1693949517276,0.00489704,25767.0,25766.0,5.42744702]
[1693949517517,0.00489704,25767.0,25766.0,5.42762702]
[1693949517742,0.00489704,25767.0,25766.0,5.98665372]
[1693949517925,0.00489704,25767.0,25766.0,5.98677372]
[1693949518082,0.00489704,25767.0,25766.0,5.98683372]
[1693949518308,0.00489704,25767.0,25766.0,5.98887372]
[1693949518532,0.00489704,25767.0,25766.0,5.89794538]
[1693949518932,0.00489704,25767.0,25766.0,5.89788538]
[1693949519162,0.00489704,25767.0,25766.0,5.99199984]
[1693949519337,0.00489704,25767.0,25766.0,5.89944538]
[1693949519534,0.00489704,25767.0,25766.0,5.89950538]
[1693949519745,0.00489704,25767.0,25766.0,5.89848538]
[1693949519990,0.00489704,25767.0,25766.0,5.89812538]
[1693949520501,0.00489704,25767.0,25766.0,5.89836538]
[1693949520643,0.00489704,25767.0,25766.0,5.89830538]
[1693949520985,0.00489704,25767.0,25766.0,5.89788538]
[1693949521317,0.00489704,25767.0,25766.0,5.89818538]
[1693949521516,0.00489704,25767.0,25766.0,5.89770538]
[1693949521741,0.00489704,25767.0,25766.0,5.89764538]
[1693949521987,0.00489704,25767.0,25766.0,5.94385955]
[1693949522185,0.00489704,25767.0,25766.0,6.08294246]
[1693949522500,0.00489704,25767.0,25766.0,5.94955955]
[1693949522674,0.00489704,25767.0,25766.0,5.94943955]
[1693949522884,0.00489704,25767.0,25766.0,5.94841955]
[1693949523085,0.00489704,25767.0,25766.0,5.94937955]
[1693949523310,0.00489704,25767.0,25766.0,6.0883915]
[1693949523535,0.00489704,25767.0,25766.0,5.94835955]
[1693949523719,0.00489704,25767.0,25766.0,5.94841955]
[1693949523873,0.00489704,25767.0,25766.0,5.94919955]
[1693949524080,0.00489704,25767.0,25766.0,5.94913955]
[1693949524312,0.00489704,25767.0,25766.0,6.08808587]
[1693949524681,0.00489704,25767.0,25766.0,6.08796587]
[1693949524864,0.00489704,25767.0,25766.0,6.08790587]
[1693949525038,0.00489704,25767.0,25766.0,6.08784587]
[1693949525254,0.00489704,25767.0,25766.0,6.08778587]
[1693949525638,0.00489704,25767.0,25766.0,6.08790587]
[1693949525837,0.00489704,25767.0,25766.0,6.08784587]
[1693949526038,0.00489704,25767.0,25766.0,6.07692587]
[1693949526243,0.00489704,25767.0,25766.0,6.07194587]
[1693949526441,0.00489704,25767.0,25766.0,6.07314587]
[1693949526661,0.00489704,25767.0,25766.0,6.07320587]
[1693949526855,0.00489704,25767.0,25766.0,6.07326587]
[1693949527233,0.00489704,25767.0,25766.0,6.07434587]
[1693949527406,0.00489704,25767.0,25766.0,6.07290587]
[1693949527614,0.00489704,25767.0,25766.0,5.82090918]
[1693949528409,0.00489704,25767.0,25766.0,6.00600587]
[1693949528618,0.00489704,25767.0,25766.0,5.82090918]
[1693949528755,0.00489704,25767.0,25766.0,5.80090918]
[1693949528962,0.00489704,25767.0,25766.0,5.82090918]
[1693949534033,0.00489704,25767.0,25766.0,6.07236587]
[1693949534246,0.00489704,25767.0,25766.0,5.82090918]
[1693949538192,0.00489704,25767.0,25766.0,5.91364032]
[1693949538564,0.00489704,25767.0,25766.0,5.49313614]
[1693949539132,0.00489704,25767.0,25766.0,5.35406982]
[1693949540023,0.00489704,25767.0,25766.0,5.49313614]
[1693949540561,0.00489704,25767.0,25766.0,5.35406982]
[1693949543821,0.00489704,25767.0,25766.0,5.42402982]
[1693949544024,0.00489704,25767.0,25766.0,5.42378982]
[1693949544367,0.00489704,25767.0,25766.0,5.98327278]
[1693949544570,0.00489704,25767.0,25766.0,5.98351278]
[1693949544794,0.00489704,25767.0,25766.0,5.89072164]
[1693949545000,0.00489704,25767.0,25766.0,5.89048164]
[1693949545148,0.00489704,25767.0,25766.0,5.89042164]
[1693949545361,0.00489704,25767.0,25766.0,5.89030164]
[1693949545619,0.00489704,25767.0,25766.0,5.95470164]
[1693949545775,0.00489704,25767.0,25766.0,6.05379419]
[1693949545986,0.00489704,25767.0,25766.0,6.05295419]
[1693949546186,0.00489704,25767.0,25766.0,6.05529419]
[1693949546397,0.00489704,25767.0,25766.0,6.22081088]
[1693949546595,0.00489704,25767.0,25766.0,6.22075088]
[1693949546847,0.00489704,25767.0,25766.0,6.21967088]
[1693949547368,0.00489704,25767.0,25766.0,6.22135088]
[1693949547517,0.00489704,25767.0,25766.0,6.21805088]
[1693949547708,0.00489704,25767.0,25766.0,6.03367419]
[1693949547928,0.00489704,25767.0,25766.0,6.03343419]
[1693949548131,0.00489704,25767.0,25766.0,6.03223419]
[1693949548374,0.00489704,25767.0,25766.0,5.56924517]
[1693949548548,0.00489704,25767.0,25766.0,5.56840517]
[1693949548749,0.00489704,25767.0,25766.0,5.57302517]
[1693949548904,0.00489704,25767.0,25766.0,5.98165462]
[1693949549110,0.00489704,25767.0,25766.0,5.35409885]
[1693949549307,0.00489704,25767.0,25766.0,5.49316517]
[1693949550468,0.00489704,25767.0,25766.0,5.35409885]
[1693949555458,0.00489704,25767.0,25766.0,5.3541022]
[1693949558016,0.00489704,25767.0,25766.0,5.49324748]
[1693949560213,0.00489704,25767.0,25766.0,5.91385852]
[1693949561655,0.00489704,25767.0,25766.0,5.49324748]
[1693949561969,0.00489704,25767.0,25766.0,5.91358905]
[1693949562738,0.00489704,25767.0,25766.0,5.82082553]
[1693949563595,0.00489704,25767.0,25766.0,5.91359043]
[1693949563922,0.00489704,25767.0,25766.0,5.82082553]
[1693949564997,0.00489704,25767.0,25766.0,5.91359329]
[1693949567219,0.00489704,25767.0,25766.0,5.97899329]
[1693949567447,0.00489704,25767.0,25766.0,5.97941329]
[1693949567704,0.00489704,25767.0,25766.0,5.88664553]
[1693949567819,0.00489704,25767.0,25766.0,5.88646553]
[1693949568021,0.00489704,25767.0,25766.0,5.88652553]
[1693949568215,0.00489704,25767.0,25766.0,5.88670553]
[1693949568474,0.00489704,25767.0,25766.0,5.88610553]
[1693949568677,0.00489704,25767.0,25766.0,5.88604553]
[1693949569034,0.00489704,25767.0,25766.0,5.88628553]
[1693949569174,0.00489704,25767.0,25766.0,5.88994553]
[1693949569372,0.00489704,25767.0,25766.0,5.89006553]
[1693949569577,0.00489704,25767.0,25766.0,5.89012553]
[1693949569784,0.00489704,25767.0,25766.0,5.88982553]
[1693949569985,0.00489704,25767.0,25766.0,5.89030553]
[1693949570200,0.00489704,25767.0,25766.0,5.89036553]
[1693949570402,0.00489704,25767.0,25766.0,5.89042553]
[1693949570626,0.00489704,25767.0,25766.0,5.89030553]
[1693949570860,0.00489704,25767.0,25766.0,5.89006553]
[1693949571167,0.00489704,25767.0,25766.0,5.89030553]
[1693949571539,0.00489704,25767.0,25766.0,5.88988553]
[1693949571864,0.00489704,25767.0,25766.0,5.89030553]
[1693949572024,0.00489704,25767.0,25766.0,5.89018553]
[1693949572226,0.00489704,25767.0,25766.0,5.89042553]
[1693949572421,0.00489704,25767.0,25766.0,5.89048553]
[1693949572644,0.00489704,25767.0,25766.0,5.89042553]
[1693949572998,0.00489704,25767.0,25766.0,5.89024553]
[1693949573276,0.00489704,25767.0,25766.0,5.89036553]
[1693949573473,0.00489704,25767.0,25766.0,5.70048553]
[1693949573894,0.00489704,25767.0,25766.0,5.70006553]
[1693949574019,0.00489704,25767.0,25766.0,5.69988553]
[1693949574436,0.00489704,25767.0,25766.0,5.69982553]
[1693949574643,0.00489704,25767.0,25766.0,5.69988553]
[1693949575303,0.00489704,25767.0,25766.0,5.69982553]
[1693949575508,0.00489704,25767.0,25766.0,5.69970553]
[1693949576067,0.00489704,25767.0,25766.0,5.90077258]
[1693949576266,0.00489704,25767.0,25766.0,5.90293258]
[1693949576567,0.00489704,25767.0,25766.0,5.90281258]
[1693949576767,0.00489704,25767.0,25766.0,5.90263258]
[1693949577019,0.00489704,25767.0,25766.0,5.90245258]
[1693949577394,0.00489704,25767.0,25766.0,5.90227258]
[1693949577589,0.00489704,25767.0,25766.0,5.90233258]
[1693949577936,0.00489704,25767.0,25766.0,5.90209258]
[1693949578114,0.00489704,25767.0,25766.0,5.90197258]
[1693949578277,0.00489704,25767.0,25766.0,5.90179258]
[1693949578679,0.00489704,25767.0,25766.0,5.90167258]
[1693949578881,0.00489704,25767.0,25766.0,5.90149258]
[1693949579077,0.00489704,25767.0,25766.0,5.90113258]
[1693949579283,0.00489704,25767.0,25766.0,5.90107258]
[1693949579497,0.00489704,25767.0,25766.0,5.90089258]
[1693949579714,0.00489704,25767.0,25766.0,5.90083258]
[1693949580133,0.00489704,25767.0,25766.0,5.90077258]
[1693949580334,0.00489704,25767.0,25766.0,5.90173258]
[1693949580676,0.00489704,25767.0,25766.0,5.90317258]
[1693949580834,0.00489704,25767.0,25766.0,5.90311258]
[1693949581012,0.00489704,25767.0,25766.0,5.7689473]
[1693949581256,0.00489704,25767.0,25766.0,5.90853433]
[1693949581457,0.00489704,25767.0,25766.0,6.09847433]
[1693949581703,0.00489704,25767.0,25766.0,6.09841433]
[1693949581888,0.00489704,25767.0,25766.0,6.09835433]
[1693949582206,0.00489704,25767.0,25766.0,6.09829433]
[1693949582380,0.00489704,25767.0,25766.0,6.09823433]
[1693949582585,0.00489704,25767.0,25766.0,5.89266728]
[1693949582787,0.00489704,25767.0,25766.0,5.89152728]
[1693949582989,0.00489704,25767.0,25766.0,5.89164728]
[1693949583189,0.00489704,25767.0,25766.0,5.89800728]
[1693949583434,0.00489704,25767.0,25766.0,5.89728728]
[1693949583774,0.00489704,25767.0,25766.0,5.89638728]
[1693949584212,0.00489704,25767.0,25766.0,5.89590728]
[1693949584633,0.00489704,25767.0,25766.0,5.89600617]
[1693949584862,0.00489704,25767.0,25766.0,5.89606617]
[1693949585380,0.00489704,25767.0,25766.0,5.89792617]
[1693949585715,0.00489704,25767.0,25766.0,5.89498617]
[1693949585916,0.00489704,25767.0,25766.0,5.89402617]
[1693949586143,0.00489704,25767.0,25766.0,5.89438617]
[1693949586541,0.00489704,25767.0,25766.0,5.89468617]
[1693949586743,0.00489704,25767.0,25766.0,5.89462617]
[1693949587035,0.00489704,25767.0,25766.0,5.89192617]
[1693949587233,0.00489704,25767.0,25766.0,5.89198617]
[1693949587447,0.00489704,25767.0,25766.0,5.89138617]
[1693949587922,0.00489704,25767.0,25766.0,5.89132617]
[1693949588208,0.00489704,25767.0,25766.0,5.89024617]
[1693949588359,0.00489704,25767.0,25766.0,5.89042617]
[1693949588703,0.00489704,25767.0,25766.0,5.89012617]
[1693949588857,0.00489704,25767.0,25766.0,5.89060617]
[1693949589078,0.00489704,25767.0,25766.0,5.89048617]
[1693949589268,0.00489704,25767.0,25766.0,5.89096617]
[1693949589681,0.00489704,25767.0,25766.0,5.89060617]
[1693949589892,0.00489704,25767.0,25766.0,5.89066617]
[1693949590094,0.00489704,25767.0,25766.0,5.89072617]
[1693949590291,0.00489704,25767.0,25766.0,5.89048617]
[1693949590468,0.00489704,25767.0,25766.0,5.82094617]
[1693949591295,0.00489704,25767.0,25766.0,5.89726617]
[1693949591635,0.00489704,25767.0,25766.0,5.89786617]
[1693949591839,0.00489704,25767.0,25766.0,5.89798617]
[1693949592042,0.00489704,25767.0,25766.0,5.89858617]
[1693949592175,0.00489704,25767.0,25766.0,5.89966617]
[1693949592376,0.00489704,25767.0,25766.0,5.89990617]
[1693949592635,0.00489704,25767.0,25766.0,5.89660617]
[1693949592775,0.00489704,25767.0,25766.0,5.89636617]
[1693949593462,0.00489704,25767.0,25766.0,5.89660617]
[1693949593640,0.00489704,25767.0,25766.0,5.89666617]
[1693949593862,0.00489704,25767.0,25766.0,5.89672617]
[1693949594090,0.00489704,25767.0,25766.0,5.89600617]
[1693949594267,0.00489704,25767.0,25766.0,5.89594617]
[1693949594468,0.00489704,25767.0,25766.0,5.88928617]
[1693949594677,0.00489704,25767.0,25766.0,5.88934617]
[1693949594901,0.00489704,25767.0,25766.0,5.88946617]
[1693949595057,0.00489704,25767.0,25766.0,5.88934617]
[1693949595262,0.00489704,25767.0,25766.0,5.88940617]
[1693949595467,0.00489704,25767.0,25766.0,5.88964617]
[1693949595663,0.00489704,25767.0,25766.0,5.88952617]
[1693949595862,0.00489704,25767.0,25766.0,5.88964617]
[1693949596132,0.00489704,25767.0,25766.0,5.89060617]
[1693949596262,0.00489704,25767.0,25766.0,5.89066617]
[1693949596477,0.00489704,25767.0,25766.0,5.89000617]
[1693949597255,0.00489704,25767.0,25766.0,5.88766617]
[1693949597460,0.00489704,25767.0,25766.0,5.88718617]
[1693949597640,0.00489704,25767.0,25766.0,5.88760617]
[1693949597838,0.00489704,25767.0,25766.0,5.88784617]
[1693949597978,0.00489704,25767.0,25766.0,5.88778617]
[1693949598179,0.00489704,25767.0,25766.0,5.88802617]
[1693949598599,0.00489704,25767.0,25766.0,5.88856617]
[1693949598799,0.00489704,25767.0,25766.0,5.88790617]
[1693949599013,0.00489704,25767.0,25766.0,5.88796617]
[1693949599213,0.00489704,25767.0,25766.0,5.88802617]
[1693949599416,0.00489704,25767.0,25766.0,5.88976617]
[1693949599683,0.00489704,25767.0,25766.0,5.89048617]
[1693949599904,0.00489704,25767.0,25766.0,5.89096617]
[1693949600323,0.00489704,25767.0,25766.0,5.89030617]
[1693949600440,0.00489704,25767.0,25766.0,5.89096617]
[1693949600843,0.00489704,25767.0,25766.0,5.89090617]
[1693949601086,0.00489704,25767.0,25766.0,6.07649322]
[1693949601286,0.00489704,25767.0,25766.0,6.07679322]
[1693949601546,0.00489704,25767.0,25766.0,6.07871322]
[1693949601987,0.00489704,25767.0,25766.0,6.07883322]
[1693949602187,0.00489704,25767.0,25766.0,6.07817322]
[1693949602442,0.00489704,25767.0,25766.0,6.07787322]
[1693949602643,0.00489704,25767.0,25766.0,6.07753611]
[1693949602883,0.00489704,25767.0,25766.0,6.08101611]
[1693949603085,0.00489704,25767.0,25766.0,6.08053611]
[1693949603292,0.00489704,25767.0,25766.0,6.08431611]
[1693949603486,0.00489704,25767.0,25766.0,6.08395611]
[1693949603830,0.00489704,25767.0,25766.0,6.08465322]
[1693949604225,0.00489704,25767.0,25766.0,6.08345322]
[1693949604404,0.00489704,25767.0,25766.0,6.08357322]
[1693949604820,0.00489704,25767.0,25766.0,6.08345322]
[1693949605130,0.00489704,25767.0,25766.0,6.08447322]
[1693949605337,0.00489704,25767.0,25766.0,6.08579322]
[1693949605528,0.00489704,25767.0,25766.0,6.09089322]
[1693949605729,0.00489704,25767.0,25766.0,6.09425322]
[1693949606051,0.00489704,25767.0,25766.0,5.96372619]
[1693949606351,0.00489704,25767.0,25766.0,5.96336619]
[1693949607115,0.00489704,25767.0,25766.0,5.96306619]
[1693949607322,0.00489704,25767.0,25766.0,5.96462619]
[1693949607529,0.00489704,25767.0,25766.0,5.96408619]
[1693949607853,0.00489704,25767.0,25766.0,5.96450619]
[1693949608065,0.00489704,25767.0,25766.0,5.96444619]
[1693949608268,0.00489704,25767.0,25766.0,5.96354619]
[1693949608475,0.00489704,25767.0,25766.0,5.94662619]
[1693949608675,0.00489704,25767.0,25766.0,5.94800619]
[1693949608880,0.00489704,25767.0,25766.0,5.94632619]
[1693949609050,0.00489704,25767.0,25766.0,5.94608619]
[1693949609472,0.00489704,25767.0,25766.0,5.94662619]
[1693949609630,0.00489704,25767.0,25766.0,5.94638619]
[1693949609829,0.00489704,25767.0,25766.0,5.94578619]
[1693949610072,0.00489704,25767.0,25766.0,5.94590619]
[1693949610248,0.00489704,25767.0,25766.0,5.94710619]
[1693949610608,0.00489704,25767.0,25766.0,5.94686619]
[1693949610791,0.00489704,25767.0,25766.0,5.94704619]
[1693949611085,0.00489704,25767.0,25766.0,5.94716619]
[1693949611315,0.00489704,25767.0,25766.0,5.94704619]
[1693949611492,0.00489704,25767.0,25766.0,5.94692619]
[1693949611819,0.00489704,25767.0,25766.0,5.94698619]
[1693949611952,0.00489704,25767.0,25766.0,5.94692619]
[1693949612500,0.00489704,25767.0,25766.0,5.94710619]
[1693949612820,0.00489704,25767.0,25766.0,5.94698619]
[1693949612951,0.00489704,25767.0,25766.0,5.94926619]
[1693949613161,0.00489704,25767.0,25766.0,5.94914619]
[1693949613559,0.00489704,25767.0,25766.0,5.94908619]
[1693949613796,0.00489704,25767.0,25766.0,5.94932619]
[1693949613992,0.00489704,25767.0,25766.0,5.94944619]
[1693949614394,0.00489704,25767.0,25766.0,5.94938619]
[1693949614595,0.00489704,25767.0,25766.0,5.94932619]
[1693949614843,0.00489704,25767.0,25766.0,5.94908619]
[1693949615363,0.00489704,25767.0,25766.0,5.94902619]
[1693949615473,0.00489704,25767.0,25766.0,5.94908619]
[1693949615876,0.00489704,25767.0,25766.0,5.94902619]
[1693949616076,0.00489704,25767.0,25766.0,5.94938619]
[1693949616336,0.00489704,25767.0,25766.0,5.94920619]
[1693949616538,0.00489704,25767.0,25766.0,5.91488759]
[1693949616692,0.00489704,25767.0,25766.0,5.94847096]
[1693949616899,0.00489704,25767.0,25766.0,5.94841096]
[1693949617120,0.00489704,25767.0,25766.0,5.94781096]
[1693949617656,0.00489704,25767.0,25766.0,5.94835096]
[1693949617863,0.00489704,25767.0,25766.0,5.94829096]
[1693949618113,0.00489704,25767.0,25766.0,5.94823096]
[1693949618353,0.00489704,25767.0,25766.0,5.94835096]
[1693949618553,0.00489704,25767.0,25766.0,5.94823096]
[1693949618773,0.00489704,25767.0,25766.0,5.94997096]
[1693949618949,0.00489704,25767.0,25766.0,5.95003096]
[1693949619183,0.00489704,25767.0,25766.0,5.94991096]
[1693949619383,0.00489704,25767.0,25766.0,6.08864799]
[1693949619520,0.00489704,25767.0,25766.0,6.08834799]
[1693949619721,0.00489704,25767.0,25766.0,6.08858799]
[1693949619947,0.00489704,25767.0,25766.0,6.08882799]
[1693949620185,0.00489704,25767.0,25766.0,6.08870799]
[1693949620482,0.00489704,25767.0,25766.0,6.08894799]
[1693949620696,0.00489704,25767.0,25766.0,6.08960799]
[1693949621022,0.00489704,25767.0,25766.0,6.09080799]
[1693949621375,0.00489704,25767.0,25766.0,6.09062799]
[1693949621555,0.00489704,25767.0,25766.0,6.09104799]
[1693949621763,0.00489704,25767.0,25766.0,6.09086799]
[1693949622162,0.00489704,25767.0,25766.0,6.09122799]
[1693949622564,0.00489704,25767.0,25766.0,6.09134799]
[1693949622765,0.00489704,25767.0,25766.0,6.09128799]
[1693949622979,0.00489704,25767.0,25766.0,6.09080799]
[1693949623617,0.00489704,25767.0,25766.0,6.09194799]
[1693949623815,0.00489704,25767.0,25766.0,6.09170799]
[1693949624039,0.00489704,25767.0,25766.0,6.09164799]
[1693949624621,0.00489704,25767.0,25766.0,6.09254799]
[1693949624966,0.00489704,25767.0,25766.0,6.09116799]
[1693949625175,0.00489704,25767.0,25766.0,6.09830799]
[1693949625374,0.00489704,25767.0,25766.0,6.09926799]
[1693949625575,0.00489704,25767.0,25766.0,6.10250799]
[1693949625774,0.00489704,25767.0,25766.0,6.10640799]
[1693949625979,0.0198,25770.0,25769.0,0.4686]
[1693949626182,0.0198,25770.0,25769.0,7.31171973]
[1693949626557,0.13776492,25776.0,25773.0,3.103996]
[1693949626558,0.13296492,25776.0,25773.0,3.103996]
[1693949626756,0.13296492,25776.0,25772.0,0.4686]
[1693949626757,0.08921124,25776.0,25775.0,1.55189]
[1693949626896,0.08921124,25776.0,25775.0,2.86913838]
[1693949627095,0.0398,25776.0,25775.0,2.71448027]
[1693949628540,0.0428,25776.0,25775.0,2.71448027]
[1693949630209,0.0428,25776.0,25775.0,2.71507623]
[1693949630723,0.0428,25776.0,25775.0,2.71544887]
[1693949632165,0.0228,25776.0,25775.0,2.71544887]
[1693949632395,0.0428,25776.0,25775.0,2.71544887]
[1693949633187,0.0228,25776.0,25775.0,2.71544887]
[1693949633390,0.0428,25776.0,25775.0,2.71544887]
[1693949634598,0.0428,25776.0,25775.0,2.74889663]
[1693949637516,0.0228,25776.0,25775.0,2.74889663]
[1693949637714,0.0428,25776.0,25775.0,2.74889663]
[1693949639461,0.0428,25776.0,25775.0,1.97295163]
[1693949639462,0.23211907,25776.0,25775.0,1.97295163]
[1693949644183,0.23211907,25776.0,25775.0,0.42106163]
[1693949644425,1.78394907,25776.0,25775.0,0.42106163]
[1693949645362,2.55986407,25776.0,25775.0,0.42106163]
[1693949645785,2.55986407,25776.0,25775.0,0.03441636]
[1693949646040,2.65302899,25776.0,25775.0,0.03441636]
[1693949646573,2.67302899,25776.0,25775.0,0.03441636]
[1693949646768,2.61302899,25776.0,25775.0,0.03441636]
[1693949646985,2.67302899,25776.0,25775.0,0.03441636]
[1693949648625,2.81277638,25776.0,25775.0,0.03441636]
[1693949649412,3.01777638,25776.0,25775.0,0.03441636]
[1693949650441,3.01745375,25776.0,25775.0,0.03441636]
[1693949652057,2.95745375,25776.0,25775.0,0.03441636]
[1693949652263,3.01745375,25776.0,25775.0,0.03441636]
[1693949652784,2.87789994,25776.0,25775.0,0.03441636]
[1693949653569,3.01745375,25776.0,25775.0,0.03441636]
[1693949659538,2.92441788,25776.0,25775.0,0.03441636]
[1693949661883,3.11048963,25776.0,25775.0,0.03441636]
[1693949668615,2.97093582,25776.0,25775.0,0.03441636]
[1693949671390,2.95093582,25776.0,25775.0,0.03441636]
[1693949671716,2.97093582,25776.0,25775.0,0.03441636]
[1693949672097,3.20546202,25776.0,25775.0,0.03441636]
[1693949672298,0.02,25773.0,25772.0,0.2556]
[1693949672616,2.76516852,25773.0,25772.0,0.2556]
[1693949672816,2.76516852,25773.0,25772.0,0.2559957]
[1693949673034,2.76516852,25773.0,25772.0,0.0003957]
[1693949673575,2.76516852,25773.0,25772.0,0.0183957]
[1693949673576,3.15908922,25773.0,25772.0,0.0183957]
[1693949673781,3.15908922,25773.0,25765.0,0.776225]
[1693949673782,0.02,25768.0,25765.0,0.776225]
[1693949673984,0.02,25768.0,25767.0,0.2399]
[1693949673985,0.898656,25768.0,25767.0,0.2399]
[1693949674163,0.898656,25768.0,25766.0,1.86285827]
[1693949674164,1.001156,25768.0,25766.0,1.86285827]
[1693949674373,0.1025,25767.0,25766.0,1.86285827]
[1693949674782,0.1025,25767.0,25766.0,1.16285827]
[1693949675580,0.1025,25767.0,25764.0,1.792423]
[1693949675817,0.1025,25767.0,25766.0,0.034]
[1693949675818,0.776186,25767.0,25766.0,0.034]
[1693949676021,0.878686,25767.0,25766.0,0.009]
[1693949676468,0.878686,25767.0,25766.0,0.018]
[1693949676848,0.898686,25767.0,25766.0,0.018]
[1693949677246,0.898686,25767.0,25766.0,0.009]
[1693949677671,0.899686,25767.0,25766.0,0.009]
[1693949677912,2.62702025,25767.0,25766.0,0.009]
[1693949678031,2.80147589,25767.0,25766.0,0.009]
[1693949678394,2.90397589,25767.0,25766.0,0.009]
[1693949678589,2.78852025,25767.0,25766.0,0.009]
[1693949678794,2.78952025,25767.0,25766.0,0.018]
[1693949679301,2.78952025,25767.0,25766.0,0.009]
[1693949680060,2.69502025,25767.0,25766.0,0.01]
[1693949680256,0.02,25765.0,25764.0,0.2399]
[1693949680455,1.674992,25765.0,25764.0,0.2399]
[1693949681301,1.674992,25765.0,25764.0,0.2409]
[1693949682656,2.451238,25765.0,25764.0,0.2409]
[1693949683063,2.61848885,25765.0,25764.0,0.2409]
[1693949684044,2.96644384,25765.0,25764.0,0.001]
[1693949684242,2.79919299,25765.0,25764.0,0.001]
[1693949684492,2.97254457,25765.0,25764.0,0.001]
[1693949684893,0.02,25762.0,25759.0,0.4168]
[1693949685094,0.1025,25760.0,25759.0,0.4168]
[1693949685901,0.1025,25760.0,25759.0,1.53557104]
[1693949686110,0.1035,25760.0,25759.0,1.56057104]
[1693949686473,0.1035,25760.0,25759.0,1.39417104]
[1693949686474,2.555191,25760.0,25759.0,1.39417104]
[1693949686881,2.555191,25760.0,25759.0,0.3004]
[1693949687082,2.555191,25760.0,25759.0,0.05]
[1693949687083,2.76143781,25760.0,25759.0,0.05]
[1693949687653,2.76143781,25760.0,25759.0,0.025]
[1693949687852,0.02,25758.0,25757.0,0.2504]
[1693949688055,0.898957,25758.0,25757.0,1.36919265]
[1693949688625,1.675414,25758.0,25757.0,1.36919265]
[1693949689015,2.6191882,25758.0,25757.0,1.36919265]
[1693949689217,2.6201882,25758.0,25757.0,0.2754]
[1693949689419,1.8437312,25758.0,25757.0,0.2754]
[1693949689866,2.6001882,25758.0,25757.0,0.2754]
[1693949690038,2.6001882,25758.0,25757.0,0.025]
[1693949690039,2.59795317,25758.0,25757.0,0.025]
[1693949690798,2.59795317,25758.0,25755.0,0.2367]
[1693949690799,0.02,25756.0,25755.0,0.2367]
[1693949691016,2.432054,25756.0,25755.0,0.2367]
[1693949691409,2.432054,25756.0,25755.0,1.35564422]
[1693949692246,2.432054,25756.0,25752.0,0.1515]
[1693949692454,2.432054,25756.0,25755.0,0.009]
[1693949692455,2.329554,25756.0,25755.0,0.009]
[1693949692654,2.432054,25756.0,25755.0,0.009]
[1693949693056,2.433054,25756.0,25755.0,0.034]
[1693949693488,2.59574532,25756.0,25755.0,0.009]
[1693949693951,2.60274532,25756.0,25752.0,0.2387]
[1693949694157,2.50124532,25756.0,25753.0,1.11901777]
[1693949694360,0.1025,25754.0,25753.0,1.11901777]
[1693949694564,0.879078,25754.0,25753.0,1.11901777]
[1693949694979,0.879078,25754.0,25753.0,1.14809757]
[1693949695650,1.655656,25754.0,25753.0,1.14809757]
[1693949695861,1.655656,25754.0,25753.0,1.15709757]
[1693949696078,2.64222389,25754.0,25753.0,1.15709757]
[1693949696920,2.72222389,25754.0,25753.0,1.15709757]
[1693949697099,2.72222389,25754.0,25753.0,1.14809757]
[1693949697249,2.72322389,25754.0,25753.0,1.16709757]
[1693949698279,2.70322389,25754.0,25753.0,1.16709757]
[1693949702684,2.70222389,25754.0,25753.0,1.15709757]
[1693949702890,2.70222389,25754.0,25753.0,1.15809757]
[1693949703087,2.70222389,25754.0,25753.0,1.14909757]
[1693949703708,2.70922389,25754.0,25753.0,1.14809757]
[1693949704163,2.71722389,25754.0,25753.0,1.14809757]
[1693949704355,2.71722389,25754.0,25753.0,1.33809757]
[1693949705940,2.81972389,25754.0,25753.0,1.33809757]
[1693949707253,3.20636916,25754.0,25753.0,1.33809757]
[1693949707997,2.81972389,25754.0,25753.0,1.33809757]
[1693949708477,2.709734,25754.0,25753.0,0.63949757]
[1693949708646,2.709734,25754.0,25753.0,0.2190798]
[1693949708990,2.709734,25754.0,25753.0,0.19]
[1693949709212,2.702734,25754.0,25753.0,0.19]
[1693949709418,2.694734,25754.0,25753.0,0.192]
[1693949709618,2.731734,25754.0,25753.0,0.194]
[1693949709895,2.694734,25754.0,25753.0,0.19]
[1693949710242,2.694734,25754.0,25749.0,0.019998]
[1693949710243,0.08,25751.0,25749.0,0.019998]
[1693949710447,2.432597,25750.0,25749.0,0.019998]
[1693949711221,2.432597,25750.0,25749.0,0.020998]
[1693949711826,2.63732396,25750.0,25749.0,0.020998]
[1693949712030,2.63732396,25750.0,25749.0,0.021998]
[1693949712523,2.63732396,25750.0,25749.0,0.019998]
[1693949712776,2.65132396,25750.0,25749.0,0.019998]
[1693949713799,2.65132396,25750.0,25749.0,0.209998]
[1693949714821,2.75132396,25750.0,25749.0,0.209998]
[1693949716877,2.67132396,25750.0,25749.0,0.209998]
[1693949717219,2.75132396,25750.0,25749.0,0.209998]
[1693949717824,2.77645904,25750.0,25749.0,0.209998]
[1693949718373,3.15610431,25750.0,25749.0,0.209998]
[1693949718550,2.94624227,25750.0,25749.0,0.209998]
[1693949718748,2.96424227,25750.0,25749.0,0.211998]
[1693949718961,3.02824227,25750.0,25749.0,0.213998]
[1693949719161,3.02824227,25750.0,25744.0,0.019998]
[1693949719162,0.06,25745.0,25744.0,0.019998]
[1693949719411,2.68046756,25745.0,25744.0,0.019998]
[1693949720051,2.72046756,25745.0,25744.0,0.019998]
[1693949720637,2.73146756,25745.0,25744.0,0.020998]
[1693949720843,2.79146756,25745.0,25744.0,0.020998]